bitfinex-derivatives/quotes_SOLF0:USTF0_20241217
["timestamp","ask_amount","ask_price","bid_price","bid_amount"]
[1734451507164,1.5933,222.52,222.33,5.37635215]
[1734451507165,2.2478,222.43,222.33,5.37635215]
[1734451507371,1.5933,222.52,222.33,5.37635215]
[1734451507769,2.2475,222.46,222.36,2.2484]
[1734451507965,2.2475,222.46,222.33,5.37635215]
[1734451507966,1.5933,222.52,222.33,5.37635215]
[1734451508174,1.5933,222.52,222.36,33.94278368]
[1734451509190,1.5933,222.52,222.33,5.37635215]
[1734451509592,2.2479,222.42,222.33,5.37635215]
[1734451509803,1.5933,222.52,222.33,5.37635215]
[1734451509997,0.6713429,222.51,222.33,5.37635215]
[1734451510793,1.5933,222.52,222.33,5.37635215]
[1734451510983,0.67124679,222.51,222.33,5.37635215]
[1734451511184,1.5933,222.52,222.33,5.37635215]
[1734451511583,2.2475,222.46,222.36,36.19118368]
[1734451511776,33.94278368,222.57,222.4,33.94278368]
[1734451511975,33.94278368,222.57,222.41,4.7]
[1734451512494,33.94278368,222.61,222.43,2.2477]
[1734451512680,0.67100068,222.6,222.41,4.7]
[1734451512979,2.2464,222.57,222.47,2.2473]
[1734451513276,7.9257271,222.64,222.44,33.94278368]
[1734451513470,7.9257271,222.64,222.48,33.94278368]
[1734451513471,0.67081863,222.63,222.48,33.94278368]
[1734451513670,2.2463,222.58,222.49,4.7]
[1734451513873,7.9257271,222.64,222.49,4.7]
[1734451514180,7.9257271,222.64,222.5,33.6023491]
[1734451514181,2.5558,222.64,222.5,33.6023491]
[1734451514373,4.8015,222.64,222.54,33.6023491]
[1734451514874,2.5558,222.64,222.62,33.6023491]
[1734451515074,2.5558,222.64,222.63,4.7]
[1734451515679,33.6023491,222.82,222.63,4.7]
[1734451515974,2.2447,222.73,222.63,6.9456]
[1734451516182,5.40922578,222.79,222.63,9.96355543]
[1734451516376,5.40922578,222.79,222.66,33.6023491]
[1734451516681,33.6023491,222.75,222.22,1.88234718]
[1734451516881,33.6023491,222.75,222.54,33.6023491]
[1734451517179,33.6023491,222.75,222.58,33.6023491]
[1734451517383,39.01157488,222.79,222.62,33.6023491]
[1734451517583,2.246,222.6,222.53,38.3023491]
[1734451517780,33.6023491,222.67,222.53,4.7]
[1734451518175,4.7,222.73,222.56,2.2464]
[1734451518176,2.2457,222.64,222.56,2.2464]
[1734451518381,2.2457,222.64,222.53,38.3023491]
[1734451518382,33.6023491,222.71,222.53,38.3023491]
[1734451518684,2.2461,222.6,222.53,4.7]
[1734451518875,4.7,222.7,222.53,38.3023491]
[1734451519078,33.6023491,222.71,222.53,38.3023491]
[1734451519477,33.6023491,222.67,222.53,4.7]
[1734451519678,35.1361491,222.71,222.53,4.7]
[1734451519880,35.1361491,222.71,222.53,43.66743559]
[1734451520084,35.1361491,222.71,222.56,2.2464]
[1734451520085,2.2456,222.65,222.56,2.2464]
[1734451520284,35.1361491,222.71,222.53,43.66743559]
[1734451520785,5.28927848,222.67,222.53,38.3023491]
[1734451521177,35.1361491,222.71,222.53,38.3023491]
[1734451521578,1.5338,222.71,222.57,33.6023491]
[1734451521793,2.2452,222.69,222.61,2.2459]
[1734451522182,2.2453,222.67,222.59,2.246]
[1734451522382,33.6023491,222.75,222.53,33.6023491]
[1734451522685,33.6023491,222.71,222.54,4.7]
[1734451522884,2.2458,222.63,222.54,6.9466]
[1734451523181,33.6023491,222.67,222.51,5.41389075]
[1734451523383,2.2465,222.56,222.46,2.2474]
[1734451523579,33.6023491,222.63,222.46,4.7]
[1734451523782,38.3023491,222.63,222.46,4.7]
[1734451524183,33.6023491,222.59,222.41,33.6023491]
[1734451524584,33.6023491,222.59,222.41,35.8502491]
[1734451524881,33.6023491,222.59,222.41,33.6023491]
[1734451525079,5.33088155,222.56,222.41,4.7]
[1734451525278,38.3023491,222.55,222.34,4.7]
[1734451525880,5.33088155,222.56,222.42,33.6023491]
[1734451526081,4.5193,222.66,222.55,33.6023491]
[1734451526286,4.5193,222.66,222.55,38.3023491]
[1734451526785,2.9432,222.66,222.55,38.3023491]
[1734451527201,4.4789,223.26,222.64,33.6023491]
[1734451527383,0.66997287,223.07,222.56,13.62]
[1734451527694,33.6023491,223.13,222.53,17.32641742]
[1734451527695,2.242,223.01,222.92,33.6023491]
[1734451527990,3.009,223.17,222.96,33.6023491]
[1734451527991,5.52,223.1,222.96,33.6023491]
[1734451528191,0.66940506,223.09,222.96,33.6023491]
[1734451528489,1.442,223.12,223.0,35.8443491]
[1734451528490,0.66929659,223.08,223.0,35.8443491]
[1734451528692,1.442,223.12,223.0,33.6023491]
[1734451528892,0.66917649,223.11,223.0,33.6023491]
[1734451529087,1.442,223.12,223.01,2.2418]
[1734451529292,35.0443491,223.12,222.92,33.6023491]
[1734451529490,5.52,223.11,222.92,33.6023491]
[1734451529991,5.52,223.11,222.92,38.9579163]
[1734451530193,2.2412,223.08,222.95,2.2424]
[1734451530496,5.52,223.11,222.95,2.2424]
[1734451530689,33.6023491,223.08,222.88,33.6023491]
[1734451530891,2.242,223.01,222.89,2.243]
[1734451531287,1.442,223.12,222.88,33.6023491]
[1734451531288,33.6023491,223.08,222.88,33.6023491]
[1734451531491,35.0443491,223.12,222.92,33.6023491]
[1734451531688,1.442,223.12,222.96,33.6023491]
[1734451532092,1.442,223.12,223.0,33.6023491]
[1734451532503,1.442,223.12,223.02,2.2418]
[1734451532893,5.46633537,223.16,223.0,33.6023491]
[1734451533098,2.2407,223.14,223.0,35.8443491]
[1734451533397,39.06868447,223.16,222.96,33.6023491]
[1734451533601,2.2407,223.14,223.02,2.2418]
[1734451533806,39.06868447,223.16,223.0,33.6023491]
[1734451534096,39.06868447,223.16,222.96,33.6023491]
[1734451534097,33.6023491,223.12,222.96,33.6023491]
[1734451534302,5.52,223.11,222.96,33.6023491]
[1734451534497,5.52,223.11,222.97,2.2422]
[1734451534697,5.52,223.11,222.96,33.6023491]
[1734451535802,2.2415,223.06,222.96,33.6023491]
[1734451536197,5.52,223.11,222.96,33.6023491]
[1734451536503,2.2413,223.07,222.96,33.6023491]
[1734451536700,39.06868447,223.16,222.96,33.6023491]
[1734451537002,5.46633537,223.16,223.0,33.6023491]
[1734451537395,13.62,223.69,223.15,67.2046982]
[1734451537700,5.35947946,223.44,223.29,33.6023491]
[1734451538706,0.66790771,223.43,223.29,33.6023491]
[1734451538906,5.35947946,223.44,223.29,33.6023491]
[1734451539202,33.6023491,223.52,223.35,33.6023491]
[1734451539400,0.66775251,223.51,223.35,33.6023491]
[1734451539797,0.66775251,223.51,223.27,33.6023491]
[1734451539798,5.50433026,223.46,223.27,33.6023491]
[1734451540199,2.2377,223.43,223.35,33.6023491]
[1734451540498,5.50433026,223.46,223.35,33.6023491]
[1734451541303,35.1030491,223.55,223.35,33.6023491]
[1734451541504,5.40317232,223.51,223.35,33.6023491]
[1734451541903,1.5007,223.55,223.39,33.6023491]
[1734451542099,0.66747678,223.54,223.39,33.6023491]
[1734451542299,1.5007,223.55,223.39,33.6023491]
[1734451542504,1.5007,223.55,223.3,38.85712103]
[1734451542505,5.30854019,223.54,223.35,33.6023491]
[1734451543305,2.2371,223.49,223.36,2.2384]
[1734451543602,5.30854019,223.54,223.3,38.85712103]
[1734451543603,5.30854019,223.54,223.39,33.6023491]
[1734451543812,5.30854019,223.54,223.3,38.85712103]
[1734451543813,2.2372,223.48,223.36,2.2383]
[1734451544005,5.30854019,223.54,223.36,33.6023491]
[1734451544208,51.28,223.69,223.44,33.6023491]
[1734451544413,2.2364,223.56,223.46,2.2373]
[1734451544607,1.583,223.57,223.44,33.6023491]
[1734451544906,2.2367,223.53,223.43,2.2376]
[1734451545410,1.583,223.57,223.41,33.6023491]
[1734451545802,1.5383,223.64,223.47,33.6023491]
[1734451546006,2.2364,223.57,223.47,33.6023491]
[1734451546301,33.6023491,223.6,223.19,33.6023491]
[1734451546501,33.6023491,223.56,223.39,5.42156856]
[1734451546709,39.9023491,223.56,223.39,5.42156856]
[1734451546908,6.3,223.56,223.4,33.6023491]
[1734451547104,2.237,223.5,223.4,35.8402491]
[1734451547499,6.3,223.56,223.4,33.6023491]
[1734451548108,2.2372,223.48,223.4,33.6023491]
[1734451548310,6.3,223.56,223.4,33.6023491]
[1734451549202,2.2369,223.52,223.4,35.8402491]
[1734451549402,6.3,223.56,223.4,33.6023491]
[1734451550005,6.3,223.56,223.36,33.6023491]
[1734451550203,2.2375,223.46,223.36,35.8406491]
[1734451550407,6.3,223.56,223.37,5.47285405]
[1734451550608,0.66741619,223.55,223.37,5.47285405]
[1734451550903,6.3,223.56,223.37,5.47285405]
[1734451551311,6.3,223.56,223.36,33.6023491]
[1734451551511,0.66747192,223.55,223.36,33.6023491]
[1734451551702,33.6023491,223.53,223.36,33.6023491]
[1734451552108,2.2373,223.48,223.36,33.6023491]
[1734451552305,1.4697,223.52,223.36,33.6023491]
[1734451552713,33.6023491,223.49,223.32,33.6023491]
[1734451553514,2.2381,223.39,223.32,33.6023491]
[1734451553809,33.6023491,223.49,223.32,33.6023491]
[1734451554012,33.6023491,223.45,223.28,33.6023491]
[1734451554209,33.6023491,223.45,223.24,33.6023491]
[1734451554406,33.6023491,223.45,223.21,6.3]
[1734451554407,33.6023491,223.45,223.28,33.6023491]
[1734451554609,2.2381,223.39,223.31,2.2389]
[1734451554808,33.6023491,223.5,223.28,33.6023491]
[1734451555014,33.6023491,223.5,223.3,2.239]
[1734451555311,33.6023491,223.42,223.26,5.3888192]
[1734451555619,6.3,223.41,223.26,5.3888192]
[1734451555916,6.3,223.41,223.25,5.38075613]
[1734451556122,2.2386,223.35,223.26,2.2394]
[1734451556419,6.3,223.41,223.24,33.6023491]
[1734451556617,33.6023491,223.38,223.2,33.6023491]
[1734451556817,33.6023491,223.34,223.17,5.50883567]
[1734451557115,33.6023491,223.34,223.08,39.9023491]
[1734451557116,2.2398,223.22,223.12,33.6023491]
[1734451557311,39.9023491,223.3,223.12,33.6023491]
[1734451558114,39.9023491,223.3,223.08,6.3]
[1734451558115,2.2392,223.29,223.21,2.2399]
[1734451558313,1.5388,223.33,223.1,5.38142335]
[1734451558314,1.5388,223.33,223.2,33.6023491]
[1734451558716,5.39647628,223.32,223.27,2.2393]
[1734451558915,33.6023491,223.42,223.24,33.6023491]
[1734451559112,33.6023491,223.38,223.2,33.6023491]
[1734451559323,5.3303509,223.37,223.2,33.6023491]
[1734451559817,35.8415491,223.28,223.16,2.2404]
[1734451560024,33.6023491,223.32,223.14,33.6023491]
[1734451560213,1.5155,223.35,223.14,33.6023491]
[1734451560521,33.6023491,223.44,223.22,33.6023491]
[1734451560820,5.39074963,223.39,223.22,33.6023491]
[1734451561815,5.39074963,223.39,223.22,38.98073216]
[1734451562726,6.04,223.45,223.3,33.6023491]
[1734451562922,1.5155,223.49,223.34,33.6023491]
[1734451563221,5.33650365,223.45,223.3,33.6023491]
[1734451563425,34.27026979,223.44,223.22,38.98073216]
[1734451563622,0.66792069,223.43,223.35,33.6023491]
[1734451563817,5.33650365,223.45,223.35,33.6023491]
[1734451564125,6.32,223.55,223.35,33.6023491]
[1734451564322,2.2367,223.53,223.39,33.6023491]
[1734451564623,0.66790987,223.54,223.43,33.6023491]
[1734451564624,0.66790987,223.52,223.43,33.6023491]
[1734451564822,0.66790987,223.51,223.43,33.6023491]
[1734451565023,0.66790987,223.53,223.43,33.6023491]
[1734451565225,0.66790987,223.52,223.47,33.6023491]
[1734451565425,0.66790987,223.52,223.41,33.6023491]
[1734451565426,2.2358,223.62,223.53,2.2366]
[1734451565625,6.10002424,223.61,223.51,33.6023491]
[1734451565827,5.43220158,223.61,223.47,33.6023491]
[1734451566119,0.66781745,223.6,223.47,33.6023491]
[1734451566729,0.66781745,223.6,223.53,2.2366]
[1734451567026,0.66781745,223.6,223.55,33.6023491]
[1734451567322,0.66781745,223.59,223.55,33.6023491]
[1734451567521,0.66781745,223.58,223.52,33.6023491]
[1734451567725,0.66781745,223.57,223.52,33.6023491]
[1734451567922,0.66781745,223.56,223.52,33.6023491]
[1734451568125,5.35255066,223.67,223.52,33.6023491]
[1734451568323,0.66771827,223.66,223.58,33.6023491]
[1734451568522,0.66771827,223.65,223.58,33.6023491]
[1734451568724,0.66771827,223.64,223.52,33.6023491]
[1734451569025,0.66771827,223.63,223.52,33.6023491]
[1734451569217,2.16371827,223.69,223.52,33.6023491]
[1734451569419,2.16371827,223.69,223.52,35.8392491]
[1734451569420,2.2362,223.6,223.52,35.8392491]
[1734451569622,0.66771113,223.59,223.48,33.6023491]
[1734451569834,34.27006023,223.59,223.41,33.6023491]
[1734451570121,0.66771113,223.58,223.45,33.6023491]
[1734451570325,0.66771113,223.62,223.45,33.6023491]
[1734451570526,0.66771113,223.61,223.49,33.6023491]
[1734451570722,0.66771113,223.66,223.54,33.6023491]
[1734451571023,0.66771113,223.65,223.58,2.2364]
[1734451571231,0.66771113,223.65,223.54,33.6023491]
[1734451571524,2.90351113,223.64,223.56,2.2365]
[1734451571720,0.66771113,223.63,223.55,33.6023491]
[1734451571924,0.66771113,223.62,223.55,33.6023491]
[1734451572125,0.66771113,223.61,223.59,33.6023491]
[1734451572321,3.0784,223.77,223.6,39.9223491]
[1734451572522,1.5216,223.84,223.6,39.9223491]
[1734451572921,1.5216,223.84,223.66,33.6023491]
[1734451573117,51.2,223.93,223.66,33.6023491]
[1734451573118,51.2,223.93,223.7,2.2351]
[1734451573326,5.25067095,223.81,223.7,2.2351]
[1734451573523,4.4937,223.92,223.7,39.9223491]
[1734451573723,5.42297369,223.87,223.75,2.2347]
[1734451573925,5.42297369,223.87,223.7,39.9223491]
[1734451574118,33.6023491,223.85,223.7,33.6023491]
[1734451574325,33.6023491,223.81,223.66,33.6023491]
[1734451574624,33.6023491,223.81,223.63,6.32]
[1734451574818,2.2345,223.77,223.62,33.6023491]
[1734451575220,33.6023491,223.81,223.62,33.6023491]
[1734451575524,33.6023491,223.86,223.66,33.6023491]
[1734451576132,2.2345,223.77,223.66,33.6023491]
[1734451576326,33.6023491,223.82,223.66,33.6023491]
[1734451576532,33.6023491,223.82,223.69,2.2352]
[1734451576827,33.6023491,223.82,223.56,5.37251743]
[1734451577125,33.6023491,223.7,223.52,33.6023491]
[1734451577320,33.6023491,223.66,223.48,33.6023491]
[1734451577625,33.6023491,223.66,223.44,45.24709067]
[1734451578025,33.6023491,223.62,223.44,45.24709067]
[1734451578325,2.9999,223.69,223.48,33.6023491]
[1734451578532,33.6023491,223.66,223.44,38.92709067]
[1734451578724,2.2368,223.54,223.46,2.2375]
[1734451579131,39.9223491,223.62,223.44,38.92709067]
[1734451579327,2.2365,223.57,223.45,2.2376]
[1734451579539,33.6023491,223.58,223.4,39.9223491]
[1734451579925,33.6023491,223.54,223.36,33.6023491]
[1734451580125,33.6023491,223.54,223.37,5.32694717]
[1734451580431,2.2377,223.46,223.36,2.2385]
[1734451580624,2.2377,223.46,223.32,33.6023491]
[1734451580853,33.6023491,223.5,223.32,33.6023491]
[1734451581048,2.2378,223.44,223.35,2.2386]
[1734451581260,33.6023491,223.5,223.32,39.09205365]
[1734451581460,33.6023491,223.46,223.28,33.6023491]
[1734451581651,2.2383,223.39,223.28,33.6023491]
[1734451582055,368.19887061,224.09,223.32,33.6023491]
[1734451582259,36.6052491,223.62,223.4,33.6023491]
[1734451582562,2.2369,223.53,223.43,2.2378]
[1734451582749,5.27019398,223.56,223.4,33.6023491]
[1734451583158,1.5534,223.61,223.4,33.6023491]
[1734451583454,5.26965637,223.58,223.44,33.6023491]
[1734451583852,1.5534,223.61,223.44,33.6023491]
[1734451584149,33.6023491,223.7,223.49,33.6023491]
[1734451584452,2.2357,223.66,223.57,2.2365]
[1734451584660,2.8712,223.73,223.53,33.6023491]
[1734451584873,2.8712,223.73,223.59,2.2362]
[1734451585353,1.4382,223.73,223.57,33.6023491]
[1734451585586,2.2351,223.72,223.57,33.6023491]
[1734451585756,1.4382,223.73,223.57,33.6023491]
[1734451585953,33.6023491,223.82,223.61,33.6023491]
[1734451586261,35.1319491,223.82,223.61,33.6023491]
[1734451586656,35.1319491,223.82,223.65,33.6023491]
[1734451587274,2.2347,223.76,223.68,2.2354]
[1734451587556,2.2347,223.76,223.65,33.6023491]
[1734451587557,35.1319491,223.82,223.65,33.6023491]
[1734451588159,2.2346,223.76,223.67,2.2354]
[1734451588361,35.1319491,223.82,223.67,2.2354]
[1734451588952,35.1319491,223.82,223.65,33.6023491]
[1734451589149,35.1319491,223.82,223.69,2.2353]
[1734451589357,35.1319491,223.82,223.58,6.32]
[1734451589358,5.30309297,223.77,223.61,33.6023491]
[1734451589557,2.2357,223.66,223.57,33.6023491]
[1734451589761,33.6023491,223.7,223.53,33.6023491]
[1734451589962,33.6023491,223.7,223.41,33.6023491]
[1734451589963,33.6023491,223.7,223.49,33.6023491]
[1734451590167,33.6023491,223.7,223.58,4.54491404]
[1734451590370,1.4464,223.69,223.58,4.54491404]
[1734451590761,1.4479,223.68,223.58,4.54491404]
[1734451590962,1.4479,223.68,223.53,5.48773507]
[1734451591270,33.6023491,223.66,223.49,33.6023491]
[1734451592301,1.581,223.67,223.53,33.6023491]
[1734451592463,1.581,223.67,223.48,11.50922346]
[1734451592660,33.6023491,223.66,223.48,11.50922346]
[1734451592856,6.06,223.65,223.4,33.6023491]
[1734451593110,33.6023491,223.58,223.4,33.6023491]
[1734451593270,33.6023491,223.63,223.41,4.54814378]
[1734451593271,33.6023491,223.54,223.41,4.54814378]
[1734451593475,2.2375,223.47,223.41,4.54814378]
[1734451593669,1.5142,223.53,223.31,7.27826557]
[1734451593869,2.2372,223.51,223.43,2.2379]
[1734451594168,2.9548,223.53,223.38,33.6023491]
[1734451594368,33.6023491,223.46,223.27,33.6023491]
[1734451594572,2.2384,223.38,223.29,2.2392]
[1734451594865,2.2384,223.38,223.23,7.27886517]
[1734451594866,33.6023491,223.42,223.26,5.3632905]
[1734451595068,2.2387,223.36,223.27,2.2395]
[1734451595265,33.6023491,223.42,223.23,33.6023491]
[1734451595483,33.6023491,223.42,223.25,5.40269075]
[1734451596066,33.6023491,223.46,223.27,33.6023491]
[1734451596270,33.6023491,223.46,223.29,2.2392]
[1734451596470,33.6023491,223.5,223.27,33.6023491]
[1734451596672,33.6023491,223.5,223.31,33.6023491]
[1734451596874,33.6023491,223.5,223.27,33.6023491]
[1734451597075,33.6023491,223.43,223.25,11.46269075]
[1734451597362,33.6023491,223.43,223.25,5.40269075]
[1734451597363,39.6623491,223.43,223.25,5.40269075]
[1734451597666,39.6623491,223.43,223.23,33.6023491]
[1734451597870,39.6623491,223.43,223.28,2.2394]
[1734451598062,39.6623491,223.43,223.24,5.25052499]
[1734451598565,2.2388,223.35,223.26,2.2396]
[1734451598751,39.6623491,223.43,223.24,5.25052499]
[1734451598947,33.6023491,223.39,223.24,5.25052499]
[1734451599150,2.974,223.38,223.24,5.25052499]
[1734451599353,33.6023491,223.35,223.15,33.6023491]
[1734451599647,33.6023491,223.3,223.11,33.6023491]
[1734451599941,1.5381,223.37,223.01,51.18]
[1734451599942,6.06,223.31,223.15,33.6023491]
[1734451600340,33.6023491,223.34,223.15,33.6023491]
[1734451600540,33.6023491,223.34,223.21,2.2401]
[1734451600541,2.2392,223.3,223.21,2.2401]
[1734451600739,2.2392,223.3,223.15,33.6023491]
[1734451600740,5.46314798,223.31,223.15,33.6023491]
[1734451601736,1.5381,223.37,223.15,33.6023491]
[1734451601945,1.5381,223.37,223.19,33.6023491]
[1734451602245,2.2389,223.33,223.25,2.2396]
[1734451602550,1.5381,223.37,223.19,33.6023491]
[1734451602841,2.2395,223.28,223.19,2.2402]
[1734451603054,2.2395,223.28,223.15,33.6023491]
[1734451603055,33.6023491,223.33,223.15,33.6023491]
[1734451603382,33.6023491,223.33,222.97,33.6023491]
[1734451603383,2.2395,223.27,223.17,2.2404]
[1734451603576,2.2395,223.27,223.15,33.6023491]
[1734451604172,2.2397,223.26,223.17,2.2404]
[1734451604472,35.1319491,223.33,223.11,33.6023491]
[1734451604674,2.2399,223.24,223.16,2.2406]
[1734451604977,35.1319491,223.33,223.12,5.36680713]
[1734451605373,33.6023491,223.29,223.07,33.6023491]
[1734451605668,33.6023491,223.29,223.1,5.30547834]
[1734451605878,33.6023491,223.29,223.11,33.6023491]
[1734451606484,35.1319491,223.33,223.15,33.6023491]
[1734451606678,1.5296,223.33,223.19,33.6023491]
[1734451607178,1.5296,223.33,223.27,33.6023491]
[1734451607379,5.27320003,223.43,223.27,33.6023491]
[1734451607583,2.2381,223.42,223.35,2.2387]
[1734451607889,2.9239,223.46,223.31,33.6023491]
[1734451608177,2.2381,223.41,223.33,2.2388]
[1734451608380,5.25950812,223.45,223.31,33.6023491]
[1734451609576,13.62,223.7,223.35,33.6023491]
[1734451609778,33.6023491,223.58,223.39,33.6023491]
[1734451609975,3.0172,223.6,223.43,33.6023491]
[1734451610272,5.4885096,223.57,223.43,33.6023491]
[1734451610476,5.4885096,223.57,223.39,33.6023491]
[1734451610775,315.70491676,224.01,223.34,6.06]
[1734451610970,1.5649,223.75,223.56,33.6023491]
[1734451611175,1.5649,223.75,223.41,33.6023491]
[1734451611176,1.5649,223.75,223.6,33.6023491]
[1734451611480,1.5649,223.75,223.69,2.2352]
[1734451611873,1.5649,223.75,223.67,2.2355]
[1734451612076,1.5649,223.75,223.64,33.6023491]
[1734451612478,1.5649,223.75,223.66,2.2355]
[1734451612677,1.5649,223.75,223.61,6.5]
[1734451612870,1.5649,223.75,223.62,12.62119465]
[1734451613071,1.5649,223.75,223.66,2.2355]
[1734451613268,1.5649,223.75,223.64,33.6023491]
[1734451613572,1.5649,223.75,223.65,4.85125079]
[1734451613762,1.5649,223.75,223.64,33.6023491]
[1734451613961,2.2342,223.8,223.7,2.2351]
[1734451614168,1.428,223.83,223.68,33.6023491]
[1734451614567,1.428,223.83,223.69,4.84157914]
[1734451614862,4.4609,224.19,223.74,33.6023491]
[1734451615079,2.8883,224.06,223.89,33.6023491]
[1734451615263,5.39546816,224.02,223.93,33.6023491]
[1734451615575,5.27417344,224.03,223.93,33.6023491]
[1734451616171,4.345,224.06,223.85,33.6023491]
[1734451616172,4.345,224.06,223.97,33.6023491]
[1734451616359,33.6023491,224.17,223.97,33.6023491]
[1734451616557,2.8745,224.22,224.01,33.6023491]
[1734451616753,2.8745,224.22,224.05,33.6023491]
[1734451617147,5.26665961,224.15,223.91,5.13218381]
[1734451617455,5.26665961,224.15,223.98,33.6023491]
[1734451617653,5.26665961,224.15,223.91,5.13218381]
[1734451617654,33.6023491,224.08,223.91,5.13218381]
[1734451617850,33.6023491,224.08,223.92,21.79365932]
[1734451617851,8.0733,224.07,223.92,21.79365932]
[1734451618048,8.0733,224.07,223.93,14.40751464]
[1734451618352,5.26665961,224.15,223.97,33.6023491]
[1734451618550,2.8745,224.22,224.05,33.6023491]
[1734451618744,2.2296,224.26,224.13,2.2308]
[1734451618949,33.6023491,224.3,224.14,15.6050599]
[1734451619152,33.6023491,224.3,224.15,10.30685036]
[1734451619452,38.86265709,224.33,224.15,5.20168663]
[1734451619750,2.2292,224.31,224.18,2.2304]
[1734451619947,38.86265709,224.33,224.18,2.2304]
[1734451620147,38.86265709,224.33,224.15,5.20168663]
[1734451620148,6.5,224.32,224.15,5.20168663]
[1734451620350,33.6023491,224.25,224.09,33.6023491]
[1734451620554,2.2302,224.2,224.08,2.2314]
[1734451620855,5.26030799,224.33,224.15,33.6023491]
[1734451621150,33.6023491,224.25,224.08,5.38285965]
[1734451621350,33.6023491,224.25,224.05,5.09426446]
[1734451621351,33.6023491,224.25,224.1,4.87595147]
[1734451621557,2.2307,224.16,224.1,4.87595147]
[1734451621750,33.6023491,224.2,224.1,4.87595147]
[1734451622252,2.2306,224.17,224.1,4.87595147]
[1734451622552,3.0035,224.19,224.1,4.87595147]
[1734451623052,2.2318,224.05,224.01,5.09426446]
[1734451623257,33.6023491,224.12,224.01,5.09426446]
[1734451623656,33.6023491,224.12,223.92,35.8352491]
[1734451623959,33.6023491,224.12,223.96,5.22748698]
[1734451624359,2.2319,224.04,223.96,5.22748698]
[1734451624559,33.6023491,224.18,223.96,38.82983608]
[1734451624856,33.6023491,224.18,224.0,33.6023491]
[1734451625059,3.0035,224.19,224.04,33.6023491]
[1734451626158,2.2308,224.15,224.04,35.8341491]
[1734451626360,2.2308,224.15,224.04,33.6023491]
[1734451626556,3.0035,224.19,224.02,6.5]
[1734451626765,3.0035,224.19,224.04,33.6023491]
[1734451627261,3.0035,224.19,224.07,2.2314]
[1734451627968,3.0035,224.19,224.04,33.6023491]
[1734451627969,2.2306,224.17,224.04,33.6023491]
[1734451628662,2.2306,224.17,224.02,6.5]
[1734451628663,5.2339,224.19,224.08,33.6023491]
[1734451628861,33.6023491,224.26,224.08,33.6023491]
[1734451629064,33.6023491,224.26,224.1,2.2312]
[1734451629456,33.6023491,224.26,224.08,38.8728024]
[1734451629660,33.6023491,224.22,224.08,5.2704533]
[1734451629871,33.6023491,224.22,224.04,40.0823491]
[1734451630066,2.2309,224.13,224.04,40.0823491]
[1734451630564,35.0788491,224.24,224.04,40.0823491]
[1734451630758,35.0788491,224.24,224.08,33.6023491]
[1734451631064,1.4765,224.24,224.08,33.6023491]
[1734451631261,1.4765,224.24,224.04,40.0823491]
[1734451631262,33.6023491,224.2,224.04,40.0823491]
[1734451631465,33.6023491,224.2,224.04,33.6023491]
[1734451632167,2.2314,224.08,224.0,33.6023491]
[1734451632365,6.48,224.22,224.0,33.6023491]
[1734451632366,33.6023491,224.16,224.0,33.6023491]
[1734451632567,2.2314,224.09,224.0,33.6023491]
[1734451632762,33.6023491,224.16,224.0,33.6023491]
[1734451633165,1.4765,224.24,224.04,33.6023491]
[1734451633363,1.4765,224.24,223.97,8.0475]
[1734451633364,1.4765,224.24,224.08,33.6023491]
[1734451634266,2.9698,224.29,224.12,33.6023491]
[1734451634473,2.2298,224.25,224.15,2.2307]
[1734451634667,5.27554344,224.27,224.15,2.2307]
[1734451634965,5.27554344,224.27,224.12,33.6023491]
[1734451634966,2.23,224.23,224.14,2.2308]
[1734451635170,2.23,224.23,224.12,33.6023491]
[1734451635171,5.27554344,224.27,224.12,33.6023491]
[1734451635767,5.27554344,224.27,224.08,33.6023491]
[1734451635768,33.6023491,224.26,224.08,33.6023491]
[1734451635967,1.64133838,226.32,224.25,33.6023491]
[1734451635968,0.97857,224.4,224.25,33.6023491]
[1734451636177,0.97857,224.4,224.25,40.0823491]
[1734451636375,0.97857,224.4,224.2,33.6023491]
[1734451636571,0.97857,224.4,224.25,33.6023491]
[1734451636772,0.97857,224.4,224.11,1.4818]
[1734451636773,2.2291,224.31,224.23,6.48]
[1734451636976,2.2291,224.31,224.21,33.6023491]
[1734451636977,0.97857,224.4,224.25,33.6023491]
[1734451637473,0.97857,224.4,224.2,6.48]
[1734451637474,0.97857,224.4,224.33,2.2289]
[1734451637682,0.97857,224.4,224.32,33.6023491]
[1734451638073,0.97857,224.4,224.32,35.8312491]
[1734451638271,0.97857,224.4,224.32,33.6023491]